bitfinex-derivatives/quotes_SOLF0:USTF0_20250428
["timestamp","ask_amount","ask_price","bid_price","bid_amount"]
[1745857816435,14.8714137,146.09,146.03,29.12]
[1745857816830,6.8448,146.05,146.03,29.12]
[1745857817233,14.8714137,146.09,146.03,29.12]
[1745857817428,6.8444,146.06,146.03,29.12]
[1745857817633,14.8714137,146.09,146.03,29.12]
[1745857817833,6.8443,146.06,146.03,29.12]
[1745857818135,6.8443,146.06,146.03,35.9654]
[1745857819240,6.8443,146.06,146.03,29.12]
[1745857819638,6.8446,146.05,146.03,29.12]
[1745857819838,14.8714137,146.09,146.03,29.12]
[1745857820243,6.8448,146.05,146.03,29.12]
[1745857820431,14.8714137,146.09,146.03,29.12]
[1745857821237,6.8443,146.06,146.03,29.12]
[1745857821740,6.8445,146.05,146.03,29.12]
[1745857822335,14.8714137,146.05,145.98,29.12]
[1745857822539,43.9914137,146.07,145.98,14.8714137]
[1745857822840,29.12,146.07,146.0,14.8714137]
[1745857823036,14.8714137,146.09,146.02,14.8714137]
[1745857823435,6.8439,146.07,146.02,16.9189137]
[1745857823636,29.12,146.1,146.02,16.9189137]
[1745857824136,6.8445,146.05,146.02,16.9189137]
[1745857825239,6.8445,146.05,146.02,2.0475]
[1745857827344,6.8445,146.05,146.02,8.8933]
[1745857827835,6.8445,146.05,146.02,2.0475]
[1745857828246,6.8442,146.06,146.02,2.0475]
[1745857828841,6.8435,146.08,146.03,14.8714137]
[1745857829041,6.8435,146.08,146.04,6.8447]
[1745857829341,6.8424,146.1,146.05,43.9914137]
[1745857829541,14.8714137,146.14,146.07,6.8432]
[1745857829738,29.12,146.15,146.08,2.1123]
[1745857829944,14.8714137,146.17,146.09,29.12]
[1745857830347,14.8714137,146.17,146.1,6.8422]
[1745857830646,6.8406,146.14,146.1,6.8422]
[1745857831748,6.8408,146.13,146.1,6.8422]
[1745857831946,14.8714137,146.17,146.1,6.8422]
[1745857832538,14.8714137,146.15,146.09,35.9625]
[1745857832742,6.8411,146.13,146.09,35.9625]
[1745857833751,6.8404,146.14,146.1,6.8421]
[1745857834348,6.8409,146.13,146.1,6.8421]
[1745857835150,6.8404,146.14,146.11,6.8416]
[1745857835349,6.8404,146.14,146.09,29.12]
[1745857835649,6.8404,146.14,146.1,6.8418]
[1745857836349,6.8404,146.14,146.09,29.12]
[1745857836745,14.8714137,146.16,146.09,29.12]
[1745857836947,14.8714137,146.16,146.1,6.8418]
[1745857837151,6.8406,146.14,146.1,6.8418]
[1745857837448,6.8406,146.14,146.11,6.8416]
[1745857837643,6.8406,146.14,146.09,29.12]
[1745857838047,6.8406,146.14,146.1,6.8419]
[1745857838848,6.8408,146.13,146.1,6.8419]
[1745857839049,14.8714137,146.16,146.1,6.8419]
[1745857839349,6.8408,146.13,146.1,6.8419]
[1745857839648,14.8714137,146.16,146.1,6.8419]
[1745857839947,14.8714137,146.16,146.11,6.8417]
[1745857840140,6.8407,146.14,146.09,29.12]
[1745857840438,6.8407,146.14,146.1,6.8417]
[1745857840642,14.8714137,146.17,146.09,29.12]
[1745857840840,14.8714137,146.17,146.1,1.9943]
[1745857841350,6.8396,146.16,146.12,6.841]
[1745857842048,6.8399,146.15,146.12,6.841]
[1745857842450,14.8714137,146.17,146.13,6.8407]
[1745857842646,14.8714137,146.17,146.1,1.9943]
[1745857843049,14.8714137,146.15,146.1,1.9943]
[1745857843248,21.7114137,146.15,146.1,1.9943]
[1745857843451,21.7114137,146.15,146.11,6.8414]
[1745857844550,6.8403,146.14,146.11,6.8414]
[1745857844850,6.8403,146.14,146.12,6.8412]
[1745857845051,21.7115137,146.15,146.1,1.9943]
[1745857845251,14.8714137,146.15,146.1,1.9943]
[1745857845649,14.8714137,146.15,146.09,29.12]
[1745857846053,14.8714137,146.15,146.09,35.9624]
[1745857846054,6.8413,146.12,146.09,35.9624]
[1745857846352,6.8413,146.12,146.09,29.12]
[1745857846553,6.8413,146.12,146.09,35.9626]
[1745857849051,6.8413,146.12,146.1,6.8421]
[1745857851755,6.8413,146.12,146.09,35.9624]
[1745857852256,6.8413,146.12,146.1,6.842]
[1745857853257,14.8714137,146.17,146.09,29.12]
[1745857853755,14.8714137,146.17,146.1,1.9573]
[1745857854348,14.8714137,146.15,146.1,1.9573]
[1745857854553,14.8714137,146.11,146.02,492.64]
[1745857854748,14.8714137,146.08,146.01,35.1051]
[1745857855056,21.7149137,146.08,146.01,35.1051]
[1745857855755,6.8437,146.07,146.04,6.8447]
[1745857856256,14.8714137,146.08,146.01,35.1051]
[1745857857459,6.8438,146.07,146.03,6.8454]
[1745857857661,14.8714137,146.08,146.03,6.8454]
[1745857858063,6.8438,146.07,146.03,6.8454]
[1745857858257,14.8714137,146.08,146.01,35.1051]
[1745857858458,6.8425,146.1,146.01,49.9765137]
[1745857858660,6.8425,146.1,146.07,6.8433]
[1745857858860,14.8714137,146.11,146.05,29.1]
[1745857859264,14.8714137,146.11,146.08,6.8429]
[1745857860763,14.8714137,146.11,146.09,6.8426]
[1745857860965,14.8714137,146.13,146.09,6.8426]
[1745857861263,14.8714137,146.11,146.05,29.1]
[1745857861467,21.7135137,146.11,146.08,6.8427]
[1745857862265,6.8423,146.1,146.07,6.8434]
[1745857862761,14.8714137,146.11,146.07,6.8434]
[1745857863465,14.8714137,146.11,146.08,6.843]
[1745857863764,14.8714137,146.11,146.05,29.1]
[1745857864266,6.8426,146.1,146.07,6.8434]
[1745857866066,14.8714137,146.11,146.07,6.8434]
[1745857866666,6.843,146.09,146.06,6.8438]
[1745857867665,6.843,146.09,146.07,6.8435]
[1745857867864,6.8419,146.11,146.05,29.1]
[1745857868067,6.8419,146.11,146.08,6.8428]
[1745857869563,14.8714137,146.11,146.05,29.1]
[1745857869866,14.8714137,146.09,146.05,29.1]
[1745857870265,14.8714137,146.07,146.05,29.1]
[1745857870462,14.8714137,146.07,146.02,29.06]
[1745857870965,6.8445,146.06,146.03,6.8452]
[1745857871167,14.8714137,146.07,146.02,29.06]
[1745857871365,14.8714137,146.05,146.02,29.06]
[1745857871567,14.8714137,146.03,145.99,29.06]
[1745857872069,6.846,146.02,145.99,35.9071]
[1745857872770,14.8714137,146.03,145.99,29.06]
[1745857873772,6.846,146.02,145.99,29.06]
[1745857873966,14.8714137,146.03,145.99,29.06]
[1745857874472,6.8462,146.02,145.99,29.06]
[1745857874966,6.8465,146.01,145.99,29.06]
[1745857875270,14.8714137,146.03,145.99,35.9073]
[1745857875462,14.8714137,146.03,145.99,29.06]
[1745857875872,14.8714137,146.03,145.96,521.54]
[1745857876169,6.846,146.02,145.96,521.54]
[1745857877172,6.846,146.02,145.99,6.8471]
[1745857878366,14.8714137,146.01,145.96,521.54]
[1745857878871,14.8714137,146.01,145.97,6.8479]
[1745857879073,14.8714137,146.01,145.96,521.54]
[1745857879771,21.7182137,146.01,145.96,521.54]
[1745857880172,21.7182137,146.01,145.98,6.8476]
[1745857880473,6.8473,146.0,145.96,521.54]
[1745857880774,14.8714137,146.01,145.96,29.06]
[1745857881172,14.8714137,146.01,145.97,6.8482]
[1745857881671,6.8471,146.0,145.97,6.8482]
[1745857882171,6.8474,145.99,145.97,6.8482]
[1745857882373,14.8714137,146.01,145.97,6.8482]
[1745857883272,6.8472,146.0,145.97,6.8482]
[1745857883573,14.8714137,146.01,145.97,6.8482]
[1745857883867,6.8473,146.0,145.97,6.8482]
[1745857884468,14.8714137,146.01,145.98,6.8478]
[1745857884674,14.8714137,146.05,145.98,14.8714137]
[1745857885272,14.8714137,146.07,145.98,14.8714137]
[1745857885465,14.8714137,146.09,146.0,14.8714137]
[1745857885667,14.8714137,146.09,146.02,14.8714137]
[1745857885864,29.08,146.1,146.05,6.8444]
[1745857886174,14.8714137,146.09,146.03,29.08]
[1745857886368,14.8714137,146.09,146.03,35.9254]
[1745857886773,6.8441,146.06,146.03,35.9254]
[1745857887074,14.8714137,146.09,146.04,6.8449]
[1745857887572,6.844,146.07,146.04,6.8449]
[1745857887770,14.8714137,146.09,146.03,35.9252]
[1745857887976,14.8714137,146.09,146.03,29.08]
[1745857888170,14.8714137,146.09,146.03,35.9254]
[1745857888365,14.8714137,146.09,146.03,29.08]
[1745857888571,6.8438,146.07,146.03,29.08]
[1745857888875,14.8714137,146.09,146.03,29.08]
[1745857889175,29.08,146.1,146.03,29.08]
[1745857889474,14.8714137,146.13,146.04,14.8714137]
[1745857889673,14.8714137,146.13,146.06,14.8714137]
[1745857889868,14.8714137,146.15,146.07,29.08]
[1745857890066,14.8714137,146.15,146.07,31.1214]
[1745857890366,6.8411,146.13,146.09,6.8424]
[1745857890669,14.8714137,146.15,146.07,31.1214]
[1745857891176,14.8714137,146.13,146.07,31.1214]
[1745857891486,6.8421,146.11,146.07,37.9647]
[1745857891675,23.7804292,146.11,146.04,31.0809]
[1745857892374,23.7804292,146.11,146.04,29.08]
[1745857893983,23.7804292,146.11,146.04,35.925]
[1745857894385,23.7804292,146.11,146.04,29.08]
[1745857894587,6.8429,146.09,146.05,6.8443]
[1745857894880,23.7804292,146.11,146.04,29.08]
[1745857895584,6.843,146.09,146.05,6.8442]
[1745857897090,6.843,146.09,146.06,6.844]
[1745857897280,6.8424,146.1,146.04,29.08]
[1745857898192,6.8424,146.1,146.07,6.8436]
[1745857898493,6.8428,146.09,146.04,29.08]
[1745857898791,6.8428,146.09,146.06,6.8438]
[1745857899789,6.8433,146.08,146.05,6.8444]
[1745857899992,23.7804292,146.11,146.04,29.08]
[1745857900494,6.8434,146.08,146.04,29.08]
[1745857900797,23.7804292,146.11,146.04,29.08]
[1745857901195,23.7804292,146.11,146.04,35.9247]
[1745857901694,6.8435,146.08,146.04,35.9247]
[1745857901893,6.8435,146.08,146.05,6.8445]
[1745857902298,54.9374292,146.13,146.04,29.08]
[1745857902988,54.9374292,146.13,146.06,6.8438]
[1745857903393,31.157,146.13,146.04,29.08]
[1745857903593,23.7804292,146.12,146.04,29.08]
[1745857904197,6.8424,146.1,146.04,29.08]
[1745857905094,29.08,146.13,146.04,29.08]
[1745857905396,23.7804292,146.15,146.05,1.9531]
[1745857905600,6.8415,146.12,146.05,1.9531]
[1745857905789,6.8415,146.12,146.09,6.8425]
[1745857905988,23.7804292,146.15,146.08,29.02]
[1745857906297,6.841,146.13,146.08,29.02]
[1745857906498,6.841,146.13,146.1,6.842]
[1745857906704,23.7804292,146.17,146.08,29.02]
[1745857906899,6.8404,146.14,146.09,4.0778]
[1745857907400,23.7804292,146.17,146.09,4.0778]
[1745857907997,23.7804292,146.17,146.09,10.9202]
[1745857908896,6.8413,146.12,146.09,10.9202]
[1745857909102,23.7804292,146.14,146.09,4.0778]
[1745857909299,23.7804292,146.14,146.08,29.02]
[1745857910095,6.8425,146.1,146.08,29.02]
[1745857910601,6.8419,146.11,146.08,29.02]
[1745857911102,6.8419,146.11,146.08,35.8631]
[1745857911504,23.7804292,146.14,146.08,29.02]
[1745857911702,23.7804292,146.17,146.08,29.02]
[1745857912003,23.7804292,146.17,146.09,4.2196]
[1745857912303,23.7804292,146.17,146.11,6.8414]
[1745857912705,6.8406,146.14,146.1,6.842]
[1745857912900,6.8406,146.14,146.09,4.2196]
[1745857913199,492.82,146.22,146.09,4.2196]
[1745857913506,13.6706,146.25,146.12,23.7804292]
[1745857913704,13.6706,146.25,146.13,29.02]
[1745857914003,6.8383,146.19,146.13,29.02]
[1745857914593,6.8385,146.18,146.13,29.02]
[1745857914805,6.8385,146.18,146.15,6.8396]
[1745857915800,6.8385,146.18,146.16,6.8393]
[1745857916700,6.8385,146.18,146.15,6.8396]
[1745857916908,29.02,146.24,146.13,29.02]
[1745857917405,6.8386,146.18,146.15,6.8398]
[1745857917604,23.7804292,146.21,146.13,29.02]
[1745857918001,23.7804292,146.21,146.14,6.8401]
[1745857918295,23.7804292,146.21,146.13,29.02]
[1745857918500,6.8387,146.18,146.15,6.8397]
[1745857918696,23.7804292,146.21,146.13,29.02]
[1745857919103,23.7804292,146.21,146.14,6.8399]
[1745857919104,6.8388,146.18,146.14,6.8399]
[1745857919403,23.7804292,146.21,146.13,29.02]
[1745857919905,6.8384,146.19,146.15,6.8395]
[1745857920205,23.7804292,146.21,146.15,6.8395]
[1745857920406,6.8391,146.17,146.14,6.8402]
[1745857920597,6.8391,146.17,146.13,29.02]
[1745857920907,6.8388,146.18,146.15,6.8398]
[1745857921206,23.7804292,146.21,146.15,6.8398]
[1745857921410,23.7804292,146.21,146.13,29.02]
[1745857921604,6.8377,146.2,146.17,6.8389]
[1745857921811,6.8377,146.2,146.14,1.971]
[1745857922110,6.8377,146.2,146.16,6.839]
[1745857922512,6.8377,146.2,146.14,1.971]
[1745857922713,6.8377,146.2,146.16,6.839]
[1745857923014,30.6176292,146.21,146.14,1.971]
[1745857923214,23.7804292,146.23,146.15,3.9634]
[1745857923614,6.8368,146.22,146.15,3.9634]
[1745857923814,6.8368,146.22,146.18,6.838]
[1745857924114,6.8368,146.22,146.18,35.858]
[1745857924307,23.7804292,146.23,146.18,29.02]
[1745857927316,6.838,146.19,146.18,29.02]
[1745857928015,23.7804292,146.23,146.18,29.02]
[1745857928210,23.7804292,146.25,146.18,29.02]
[1745857929817,6.8373,146.21,146.18,35.8584]
[1745857930317,6.8369,146.22,146.19,6.8377]
[1745857930516,23.7804292,146.25,146.18,29.02]
[1745857930708,6.8372,146.21,146.18,35.8583]
[1745857930912,23.7804292,146.25,146.18,29.02]
[1745857931407,6.8378,146.2,146.18,29.02]
[1745857931617,23.7804292,146.25,146.18,29.02]
[1745857932012,6.8375,146.21,146.18,29.02]
[1745857932615,6.8368,146.22,146.18,29.02]
[1745857932817,1.9639,146.26,146.18,29.02]
[1745857933006,1.9639,146.26,146.2,6.8372]
[1745857933412,6.8363,146.23,146.2,6.8372]
[1745857933614,1.9639,146.26,146.19,6.8378]
[1745857933815,6.8368,146.22,146.19,6.8378]
[1745857934116,1.9639,146.26,146.2,6.8375]
[1745857934415,6.8364,146.23,146.2,6.8375]
[1745857934614,1.9639,146.26,146.19,6.8377]
[1745857934816,23.7804292,146.25,146.19,6.8377]
[1745857935616,20.53,146.54,146.23,47.5608584]
[1745857935915,6.829,146.39,146.27,23.7804292]
[1745857936112,23.7804292,146.4,146.28,28.96]
[1745857936313,54.7478292,146.43,146.3,23.7804292]
[1745857936511,6.8273,146.42,146.31,2.044]
[1745857936712,23.7804292,146.4,146.32,28.96]
[1745857937014,6.83,146.36,146.31,4.1305]
[1745857937216,96.2634121,146.38,146.31,2.044]
[1745857937716,30.6105292,146.36,146.31,2.044]
[1745857937916,23.7804292,146.36,146.29,28.96]
[1745857938312,23.7804292,146.33,146.26,28.96]
[1745857938717,30.6122292,146.33,146.26,28.96]
[1745857938917,23.7804292,146.33,146.26,28.96]
[1745857939220,6.8319,146.32,146.26,28.96]
[1745857939420,23.7804292,146.33,146.26,28.96]
[1745857939921,30.6125292,146.32,146.26,28.96]
[1745857940114,6.8321,146.32,146.26,28.96]
[1745857940310,23.7804292,146.33,146.26,28.96]
[1745857940923,23.7804292,146.3,146.23,28.96]
[1745857941115,23.7804292,146.27,146.23,28.96]
[1745857941419,23.7804292,146.27,146.22,1.9417]
[1745857942012,6.8356,146.25,146.22,1.9417]
[1745857942212,23.7804292,146.27,146.21,2.0865]
[1745857942714,6.8355,146.25,146.21,2.0865]
[1745857942911,23.7804292,146.27,146.21,2.0865]
[1745857943220,6.8355,146.25,146.21,2.0865]
[1745857943422,52.7404292,146.3,146.21,2.0865]
[1745857944120,52.7404292,146.3,146.22,6.8364]
[1745857944321,52.7404292,146.3,146.21,2.0865]
[1745857944518,23.7804292,146.27,146.21,2.0865]
[1745857944720,23.7804292,146.27,146.2,521.24]
[1745857945113,23.7804292,146.27,146.2,28.96]
[1745857945317,6.8364,146.23,146.2,28.96]
[1745857945519,23.7804292,146.27,146.2,28.96]
[1745857945919,6.8364,146.23,146.2,28.96]
[1745857946119,23.7804292,146.27,146.2,28.96]
[1745857946321,6.8364,146.23,146.2,28.96]
[1745857947224,6.8358,146.24,146.2,28.96]
[1745857947524,23.7804292,146.27,146.2,28.96]
[1745857947716,2.0166,146.28,146.2,28.96]
[1745857947915,2.0166,146.28,146.22,6.8362]
[1745857948123,6.835,146.26,146.22,6.8362]
[1745857948825,2.0166,146.28,146.2,28.96]
[1745857949020,23.7804292,146.27,146.2,28.96]
[1745857950226,6.8358,146.24,146.2,35.7974]
[1745857951527,23.7804292,146.27,146.2,35.7974]
[1745857951724,23.7804292,146.27,146.18,2.0741]
[1745857951917,23.7804292,146.27,146.17,30.962]
[1745857952117,28.96,146.26,146.18,2.8349282]
[1745857952325,23.7804292,146.24,146.14,2.1189]
[1745857952525,23.7804292,146.24,146.15,2.8374144]
[1745857952826,23.7804292,146.24,146.16,2.8374144]
[1745857953125,28.96,146.26,146.16,2.8374144]
[1745857953426,28.96,146.26,146.17,2.0398]
[1745857953617,28.96,146.26,146.18,2.837263]
[1745857953821,28.96,146.26,146.19,2.8368973]
[1745857954017,23.7804292,146.27,146.17,30.9998]
[1745857954018,23.7804292,146.24,146.17,30.9998]
[1745857954218,23.7804292,146.24,146.17,2.0398]
[1745857954422,23.7804292,146.24,146.14,37.919]
[1745857954627,23.7804292,146.24,146.15,2.83960534]
[1745857954829,23.7804292,146.24,146.16,2.83960534]
[1745857955031,6.8383,146.19,146.17,2.83960534]
[1745857955327,23.7804292,146.24,146.14,31.0789]
[1745857955527,23.7804292,146.24,146.15,2.84184372]
[1745857955729,28.96,146.25,146.16,2.84184372]
[1745857955930,28.96,146.25,146.17,2.84184372]
[1745857956125,6.8382,146.19,146.15,6.8397]
[1745857956325,6.8382,146.19,146.16,2.84363796]
[1745857956520,6.8382,146.19,146.17,2.84363796]
[1745857956725,6.8382,146.19,146.15,6.8397]
[1745857957024,28.96,146.25,146.16,2.84568566]
[1745857957223,28.96,146.25,146.17,2.84568566]
[1745857957425,6.838,146.2,146.18,2.84568566]
[1745857957624,6.838,146.2,146.15,6.8397]
[1745857957829,28.96,146.25,146.16,2.8474132]
[1745857958024,23.7804292,146.26,146.17,2.8474132]
[1745857958228,28.96,146.25,146.16,6.8392]
[1745857958429,28.96,146.25,146.17,2.84866424]
[1745857958730,28.96,146.25,146.18,2.84866424]
[1745857958929,28.96,146.25,146.16,6.8392]
[1745857959131,28.96,146.25,146.17,9.68760075]
[1745857959330,28.96,146.25,146.18,2.84880075]
[1745857959932,28.96,146.25,146.14,54.8593292]
[1745857960132,28.96,146.25,146.15,2.84975232]
[1745857960332,6.8378,146.2,146.16,2.84975232]
[1745857960832,28.96,146.25,146.17,2.84975232]
[1745857961034,23.7804292,146.23,146.18,2.84975232]
[1745857961231,23.7804292,146.23,146.14,31.0789]
[1745857961432,6.8377,146.2,146.16,6.8393]
[1745857961731,6.8377,146.2,146.17,2.84982773]
[1745857961932,6.8377,146.2,146.18,2.84982773]
[1745857962134,6.8377,146.2,146.16,6.8393]
[1745857962330,6.8377,146.2,146.17,2.84981822]
[1745857962530,6.8377,146.2,146.18,2.84981822]
[1745857962831,6.8377,146.2,146.17,6.8389]
[1745857963031,6.8377,146.2,146.18,2.84979597]
[1745857963227,23.7804292,146.23,146.14,31.0789]
[1745857963432,23.7804292,146.26,146.15,2.85036156]
[1745857963629,23.7804292,146.26,146.16,2.85036156]
[1745857963826,6.8359,146.24,146.2,6.8371]
[1745857964329,6.8354,146.25,146.21,9.68630622]
[1745857964527,6.8354,146.25,146.21,6.8369]
[1745857964936,6.8354,146.25,146.22,6.8365]
[1745857965135,6.8357,146.24,146.14,54.8593292]
[1745857965436,29.18477,146.32,146.26,6.8344]
[1745857965632,6.833,146.3,146.26,6.8344]
[1745857965833,29.18477,146.32,146.23,52.7004292]
[1745857966029,6.8341,146.28,146.24,2.84818787]
[1745857966236,23.7804292,146.31,146.25,2.84818787]
[1745857966538,23.7804292,146.31,146.24,6.8355]
[1745857966741,6.834,146.28,146.25,2.84798669]
[1745857966939,6.834,146.28,146.25,6.8352]
[1745857967135,23.7804292,146.31,146.25,6.8352]
[1745857967337,6.8336,146.29,146.25,6.8352]
[1745857967942,6.8336,146.29,146.26,2.84818153]
[1745857968140,6.8336,146.29,146.25,6.8352]
[1745857968442,6.8338,146.28,146.25,6.8352]
[1745857968939,6.8336,146.29,146.25,6.8352]
[1745857969645,23.7804292,146.31,146.26,2.8480249]
[1745857969848,23.7804292,146.31,146.23,28.92]
[1745857970041,23.7804292,146.31,146.24,2.8483016]
[1745857970243,6.8336,146.29,146.25,9.6832016]
[1745857970545,6.8336,146.29,146.25,6.8349]
[1745857971142,23.7804292,146.31,146.26,2.84684874]
[1745857971339,23.7804292,146.31,146.23,28.92]
[1745857971546,30.6130292,146.31,146.27,6.8339]
[1745857971745,23.7804292,146.31,146.27,6.8339]
[1745857971947,23.7804292,146.31,146.23,28.92]
[1745857972249,6.8331,146.3,146.26,6.8345]
[1745857972439,6.8331,146.3,146.27,2.84706615]
[1745857972638,6.8331,146.3,146.26,6.8344]
[1745857972841,6.8331,146.3,146.27,2.84648762]
[1745857973050,30.6130292,146.31,146.27,6.8341]
[1745857973448,23.7804292,146.31,146.23,28.92]
[1745857973651,6.8331,146.3,146.26,6.8343]
[1745857973846,6.8331,146.3,146.27,2.84631131]
[1745857974046,6.8331,146.3,146.23,28.92]
[1745857974247,6.8331,146.3,146.27,6.834]
[1745857974947,29.18477,146.32,146.23,28.92]
[1745857975254,0.26477,146.32,146.24,2.8453302]
[1745857975452,7.09697,146.32,146.29,6.8331]
[1745857975948,0.26477,146.32,146.31,6.8324]
[1745857976150,0.26477,146.32,146.31,2.84358715]
[1745857976853,0.26477,146.32,146.31,2.84124807]
[1745857977153,0.26477,146.32,146.31,9.67364807]
[1745857977348,0.26477,146.32,146.31,38.59364807]
[1745857977750,0.26477,146.32,146.31,31.76124807]
[1745857978152,6.8315,146.33,146.31,31.76124807]
[1745857978354,6.8315,146.33,146.32,2.84124807]
[1745857978953,6.8312,146.34,146.32,2.84124807]
[1745857979146,6.8312,146.34,146.31,35.752]
[1745857979350,28.92,146.39,146.32,2.83722334]
[1745857979544,6.8303,146.36,146.33,6.8312]
[1745857979747,6.8303,146.36,146.31,28.92]
[1745857979950,6.8303,146.36,146.32,2.83745472]
[1745857980152,6.8303,146.36,146.32,6.8317]
[1745857980354,6.8305,146.35,146.32,6.8317]
[1745857980553,6.8305,146.35,146.31,28.92]
[1745857981058,28.92,146.39,146.31,28.92]
[1745857981256,28.92,146.39,146.32,2.83841157]
[1745857981459,6.8313,146.34,146.31,28.92]
[1745857981756,23.7804292,146.37,146.32,2.83756583]
[1745857981956,6.8314,146.33,146.28,28.9]
[1745857982159,23.7804292,146.37,146.29,2.83756566]
[1745857982358,23.7804292,146.37,146.28,28.9]
[1745857982559,23.7804292,146.37,146.29,2.83899713]
[1745857982760,23.7804292,146.37,146.28,28.9]
[1745857982761,24.1339892,146.4,146.3,2.83899713]
[1745857982961,6.8303,146.36,146.32,6.8316]
[1745857983360,24.1339892,146.4,146.32,28.9]
[1745857983565,6.8295,146.38,146.34,6.8307]
[1745857984060,6.8296,146.37,146.34,6.8307]
[1745857984361,24.1339892,146.4,146.33,6.8313]
[1745857984557,6.8295,146.38,146.34,2.83589637]
[1745857984754,24.1339892,146.4,146.33,6.8313]
[1745857985164,24.1339892,146.4,146.32,35.7317]
[1745857985466,24.1339892,146.4,146.33,2.83514352]
[1745857985758,24.1339892,146.4,146.32,28.9]
[1745857986163,6.8304,146.36,146.32,28.9]
[1745857986462,6.8304,146.36,146.32,35.7317]
[1745857986659,24.1339892,146.4,146.32,35.7317]
[1745857987158,23.7804292,146.37,146.32,28.9]
[1745857987364,6.8313,146.34,146.32,28.9]
[1745857988062,6.8314,146.33,146.32,28.9]
[1745857988263,23.7804292,146.34,146.28,6.8335]
[1745857988561,6.8322,146.32,146.28,35.7335]
[1745857989057,6.8321,146.32,146.28,35.7335]
[1745857989466,6.8321,146.32,146.28,28.9]
[1745857989963,6.8316,146.33,146.29,6.8329]
[1745857990365,23.7804292,146.34,146.29,6.8329]
[1745857990763,23.7804292,146.34,146.28,35.7335]
[1745857990964,6.8323,146.32,146.28,28.9]
[1745857991362,6.8323,146.32,146.29,6.8331]
[1745857991664,6.8317,146.33,146.28,28.9]
[1745857991863,23.7804292,146.37,146.31,6.832]
[1745857992068,6.8302,146.36,146.28,28.9]
[1745857992264,24.1339892,146.4,146.29,26.61363302]
[1745857992462,24.1339892,146.4,146.3,2.83320382]
[1745857992664,24.1339892,146.4,146.31,2.83320382]
[1745857992860,24.1339892,146.4,146.35,6.8302]
[1745857993269,6.8289,146.39,146.32,30.9054]
[1745857993566,6.8289,146.39,146.33,2.83016247]
[1745857993759,6.8289,146.39,146.32,30.9054]
[1745857993967,86.6541121,146.5,146.37,23.7804292]
[1745857994161,160.43902,146.52,146.48,23.7804292]
[1745857994371,160.43902,146.52,146.49,28.88]
[1745857994670,160.43902,146.52,146.5,28.88]
[1745857994870,160.43902,146.52,146.48,28.88]
[1745857995465,6.8233,146.51,146.45,28.86]
[1745857995871,160.43902,146.52,146.45,28.86]
[1745857996370,184.2194492,146.52,146.45,28.86]
[1745857997260,23.7804292,146.52,146.45,28.86]
[1745857997464,6.8235,146.5,146.45,28.86]
[1745857997669,23.7804292,146.46,146.34,28.86]
[1745857997870,23.7804292,146.46,146.35,5.05274358]
[1745857998164,28.86,146.47,146.36,3.05804358]
[1745857998369,28.86,146.47,146.36,26.83847278]
[1745857998670,28.86,146.47,146.37,3.05804358]
[1745857998870,28.86,146.47,146.38,31.91804358]
[1745857999071,28.86,146.47,146.39,3.05804358]
[1745857999372,28.86,146.47,146.38,28.86]
[1745857999572,6.8262,146.45,146.39,3.05720869]
[1745857999773,28.86,146.47,146.38,28.86]
[1745857999967,6.828,146.41,146.39,3.05718285]
[1745858000167,23.7804292,146.45,146.38,28.86]
[1745858000572,6.828,146.41,146.38,28.86]
[1745858000773,23.7804292,146.45,146.38,28.86]
[1745858001173,28.86,146.47,146.38,28.86]
[1745858001174,6.8265,146.44,146.38,28.86]